bitfinex/quotes_ETHUSD_20240703
["timestamp","ask_amount","ask_price","bid_price","bid_amount"]
[1719989907687,3.01031808,3375.1,3375.0,0.59374982]
[1719989910782,3.01031924,3375.1,3375.0,0.59374982]
[1719989912607,3.01031969,3375.1,3375.0,0.59374982]
[1719989913605,3.01031978,3375.1,3375.0,0.59374982]
[1719989914031,3.01031974,3375.1,3375.0,0.59374982]
[1719989914730,3.01031923,3375.1,3375.0,0.59374982]
[1719989917287,3.01032006,3375.1,3375.0,0.59374982]
[1719989920310,0.51332006,3375.1,3375.0,0.59374982]
[1719989920520,2.2705,3375.3,3375.0,0.59374982]
[1719989920835,2.06658543,3375.2,3375.0,0.59374982]
[1719989920999,0.51331861,3375.2,3375.0,0.59374982]
[1719989921304,0.51331861,3375.1,3375.0,0.59374982]
[1719989921499,0.51331861,3375.2,3375.0,0.59374982]
[1719989923928,2.2705,3375.3,3375.0,0.59374982]
[1719989924131,0.51331907,3375.1,3375.0,0.59374982]
[1719989927313,0.51331969,3375.1,3375.0,0.59374982]
[1719989927795,0.51331984,3375.1,3375.0,0.59374982]
[1719989930443,2.2705,3375.3,3375.0,0.59374982]
[1719989930604,0.51331973,3375.1,3375.0,0.59374982]
[1719989933737,2.2705,3375.3,3375.0,0.59374982]
[1719989933943,0.51332001,3375.1,3375.0,0.59374982]
[1719989934108,0.51332001,3375.2,3375.0,0.59374982]
[1719989934436,0.51332001,3375.1,3375.0,0.59374982]
[1719989937160,0.51333917,3375.1,3375.0,0.59374982]
[1719989940540,0.51333996,3375.1,3375.0,0.59374982]
[1719989940750,0.51333996,3375.2,3375.0,0.59374982]
[1719989940947,2.2705,3375.3,3375.0,0.59374982]
[1719989941238,0.5133399,3375.2,3375.0,1.67074982]
[1719989941446,0.5133399,3375.1,3375.0,1.67074982]
[1719989942018,0.5133399,3375.1,3375.0,0.59374982]
[1719989942946,0.51332006,3375.1,3375.0,0.59374982]
[1719989943846,2.2705,3375.3,3375.0,1.67074982]
[1719989944047,3.0,3375.6,3375.0,1.67074982]
[1719989944048,0.51332021,3375.2,3375.0,1.67074982]
[1719989944352,0.51332021,3375.1,3375.0,1.67074982]
[1719989946213,0.51329684,3375.1,3375.0,1.67074982]
[1719989947921,0.51329684,3375.1,3375.0,0.59374982]
[1719989949545,0.51329902,3375.1,3375.0,0.59374982]
[1719989951635,2.4445,3375.4,3375.0,0.59374982]
[1719989952554,0.51329826,3375.1,3375.0,0.59374982]
[1719989952727,2.4445,3375.4,3375.0,0.59374982]
[1719989952926,0.51330004,3375.3,3375.0,0.59374982]
[1719989953134,0.51330004,3375.2,3375.0,0.59374982]
[1719989953625,0.51329765,3375.1,3375.0,0.59374982]
[1719989954256,0.51329772,3375.1,3375.0,0.59374982]
[1719989954631,0.5132983,3375.1,3375.0,0.59374982]
[1719989956055,3.0001983,3375.1,3375.0,0.59374982]
[1719989956259,3.0001983,3375.1,3375.0,1.67074982]
[1719989956560,0.5132983,3375.1,3375.0,1.67074982]
[1719989957331,0.51327472,3375.1,3375.0,1.67074982]
[1719989957533,0.51327473,3375.1,3375.0,1.67074982]
[1719989960493,2.4265,3375.5,3375.0,1.67074982]
[1719989960635,1.50392444,3375.4,3375.0,1.67074982]
[1719989960837,0.51327444,3375.3,3375.0,1.67074982]
[1719989961362,0.51327444,3375.2,3375.0,1.67074982]
[1719989961533,0.51327444,3375.4,3375.0,1.67074982]
[1719989963765,3.41715,3375.5,3375.0,1.67074982]
[1719989963965,0.51327571,3375.4,3375.0,1.67074982]
[1719989964437,0.51327571,3375.3,3375.0,1.67074982]
[1719989964892,3.41715,3375.5,3375.0,1.67074982]
[1719989964893,0.51327571,3375.2,3375.0,1.67074982]
[1719989965099,0.51327571,3375.4,3375.0,1.67074982]
[1719989965311,1.47301376,3375.4,3375.0,1.67074982]
[1719989965460,0.51327571,3375.3,3375.0,1.67074982]
[1719989965893,0.51327571,3375.4,3375.0,0.59374982]
[1719989966095,0.51327571,3375.3,3375.0,1.67074982]
[1719989966289,0.51327571,3375.4,3375.0,1.67074982]
[1719989966594,3.15828281,3375.5,3375.0,1.67074982]
[1719989966595,0.51327571,3375.3,3375.0,1.67074982]
[1719989966888,0.51327571,3375.2,3375.0,1.67074982]
[1719989967329,3.15828281,3375.5,3375.0,1.67074982]
[1719989967594,1.06382828,3375.4,3375.0,1.67074982]
[1719989967786,0.51327565,3375.3,3375.0,1.67074982]
[1719989967987,0.51327565,3375.2,3375.0,1.67074982]
[1719989968196,0.51327565,3375.3,3375.0,1.67074982]
[1719989968497,0.51327565,3375.2,3375.0,1.67074982]
[1719989968679,1.50392565,3375.4,3375.0,1.67074982]
[1719989968877,0.51327565,3375.3,3375.0,1.67074982]
[1719989969407,0.51327565,3375.3,3375.0,0.59374982]
[1719989969709,0.51327565,3375.3,3375.0,1.67074982]
[1719989970109,0.51327565,3375.4,3375.0,1.67074982]
[1719989970266,0.51327565,3375.3,3375.0,1.67074982]
[1719989970466,0.51327434,3375.2,3375.0,1.67074982]
[1719989970699,0.51327434,3375.1,3375.0,1.67074982]
[1719989972019,0.51327434,3375.1,3375.0,0.59374982]
[1719989972325,0.51327434,3375.1,3375.0,1.67074982]
[1719989973906,0.51327366,3375.1,3375.0,1.67074982]
[1719989974125,0.51327366,3375.1,3375.0,0.59374982]
[1719989977032,7.48,3375.7,3375.0,0.59374982]
[1719989977220,7.48,3375.7,3375.6,1.077]
[1719989977398,7.99318866,3375.7,3375.6,3.3766]
[1719989977597,7.48,3375.7,3375.6,3.3766]
[1719989977798,7.48,3375.7,3375.6,4.85781]
[1719989982244,2.4462,3376.5,3375.6,4.85781]
[1719989982245,7.48,3376.3,3375.6,4.85781]
[1719989982526,0.51317947,3376.2,3375.9,1.077]
[1719989982732,0.51317947,3376.1,3375.9,1.077]
[1719989982929,0.51317947,3376.2,3375.9,1.077]
[1719989983135,0.51317947,3376.1,3375.9,1.077]
[1719989983335,0.51317947,3376.2,3375.9,1.077]
[1719989983542,8.21552534,3376.3,3375.9,1.077]
[1719989983833,0.51318117,3376.2,3375.9,1.077]
[1719989985103,2.3683,3376.1,3375.6,0.59374982]
[1719989985299,0.51318117,3376.0,3375.6,0.59374982]
[1719989985514,0.51318117,3376.0,3375.4,0.59374982]
[1719989985805,0.51318117,3376.0,3375.2,0.59374982]
[1719989985806,2.3683,3375.9,3375.2,0.59374982]
[1719989986127,0.51318117,3375.8,3375.2,0.59374982]
[1719989986906,0.51328117,3375.7,3375.2,0.59374982]
[1719989987128,2.3683,3375.9,3375.2,0.59374982]
[1719989987129,0.51328117,3375.6,3375.2,0.59374982]
[1719989987334,0.51328117,3375.5,3375.2,0.59374982]
[1719989987602,0.51328117,3375.4,3375.2,0.59374982]
[1719989987832,0.51328024,3375.3,3375.2,0.59374982]
[1719989988134,0.64453,3375.8,3375.2,0.59374982]
[1719989988327,0.51327849,3375.7,3375.2,0.59374982]
[1719989988522,0.64453,3375.8,3375.2,0.59374982]
[1719989988523,1.61388934,3375.6,3375.2,0.59374982]
[1719989988726,0.51327849,3375.5,3375.2,0.59374982]
[1719989990236,0.51328976,3375.4,3375.2,0.59374982]
[1719989990422,0.51328976,3375.3,3375.2,0.59374982]
[1719989991231,0.5132895,3375.3,3375.2,0.59374982]
[1719989991645,0.51328799,3375.3,3375.2,0.59374982]
[1719989991811,0.92464787,3375.3,3375.2,0.59374982]
[1719989993659,0.92466235,3375.3,3375.2,0.59374982]
[1719989994066,0.92466563,3375.3,3375.2,0.59374982]
[1719989994631,0.51330575,3375.3,3375.2,0.59374982]
[1719989996766,2.4997,3375.5,3375.2,0.59374982]
[1719989996965,0.51330169,3375.3,3375.2,0.59374982]
[1719989998445,2.4997,3375.5,3375.2,0.59374982]
[1719989998650,0.5132807,3375.4,3375.2,0.59374982]
[1719990000077,0.51329229,3375.3,3375.2,0.59374982]
[1719990000235,2.92418408,3375.5,3375.2,0.57827982]
[1719990000437,0.51329015,3375.4,3375.2,0.57827982]
[1719990000637,2.92418408,3375.5,3375.2,0.57827982]
[1719990002692,0.33942084,3375.1,3374.7,0.57827982]
[1719990002987,0.51335096,3375.0,3374.7,0.57827982]
[1719990003293,2.4271,3375.2,3374.8,1.077]
[1719990003452,0.51334029,3375.1,3374.8,1.077]
[1719990003655,2.4271,3375.2,3374.8,1.077]
[1719990003856,0.51333826,3375.1,3374.8,1.077]
[1719990004062,0.51333826,3375.0,3374.8,1.077]
[1719990004260,0.51333826,3375.1,3374.8,1.077]
[1719990004489,0.51334421,3375.0,3374.8,1.077]
[1719990004663,2.71519087,3375.2,3374.8,1.077]
[1719990004859,0.51334781,3375.1,3374.8,1.077]
[1719990005195,0.51334781,3375.0,3374.8,1.077]
[1719990005356,0.51334781,3375.1,3374.7,0.57827982]
[1719990005785,2.4271,3375.2,3374.7,0.57827982]
[1719990005987,0.5133449,3375.1,3374.7,0.57827982]
[1719990006157,2.4271,3375.2,3374.8,1.077]
[1719990006357,0.5133439,3375.1,3374.8,1.077]
[1719990006591,2.4271,3375.2,3374.8,1.077]
[1719990006799,0.51333894,3375.1,3374.8,1.077]
[1719990007094,2.4271,3375.2,3374.8,1.077]
[1719990007425,0.51334287,3375.1,3374.8,1.077]
[1719990007699,2.71519087,3375.2,3374.8,1.077]
[1719990007996,0.51334423,3375.1,3374.7,0.57827982]
[1719990008178,0.51334423,3375.0,3374.7,0.57827982]
[1719990008377,1.077,3374.8,3374.1,0.57827982]
[1719990008575,0.84995423,3374.7,3374.1,0.57827982]
[1719990008780,0.51334423,3374.6,3374.1,0.57827982]
[1719990009001,0.51344598,3374.5,3374.1,0.57827982]
[1719990009207,2.2851,3374.4,3374.1,0.57827982]
[1719990010279,2.2851,3374.4,3373.9,0.57827982]
[1719990010495,0.74199589,3374.3,3373.9,0.57827982]
[1719990010669,0.22851,3374.3,3373.9,0.57827982]
[1719990011000,0.22851,3374.3,3373.6,1.077]
[1719990011001,0.22851,3374.3,3373.6,1.65527982]
[1719990011303,2.2851,3374.4,3373.9,0.57827982]
[1719990012980,0.51348498,3374.3,3373.9,0.57827982]
[1719990013174,2.2851,3374.4,3373.9,0.57827982]
[1719990014804,3.3621,3374.4,3373.9,0.57827982]
[1719990015008,0.51348923,3374.3,3373.9,0.57827982]
[1719990015175,1.13555892,3374.2,3373.9,0.57827982]
[1719990017411,1.13555892,3374.2,3373.6,0.57827982]
[1719990020711,1.13555892,3374.2,3373.9,0.57827982]
[1719990025009,7.48,3374.5,3373.9,0.57827982]
[1719990025209,0.51347598,3374.4,3373.9,1.65527982]
[1719990025579,7.48,3374.5,3373.9,1.65527982]
[1719990025779,0.51347535,3374.4,3373.9,1.65527982]
[1719990025991,7.48,3374.5,3373.9,1.65527982]
[1719990026190,1.53090674,3374.4,3373.9,1.65527982]
[1719990026416,1.017431,3374.4,3373.9,1.65527982]
[1719990026776,1.017431,3374.4,3373.9,0.57827982]
[1719990028715,0.51347653,3374.3,3373.9,0.57827982]
[1719990029014,1.017431,3374.4,3373.9,0.57827982]
[1719990029209,1.59899009,3374.3,3373.9,0.57827982]
[1719990029410,1.0855131,3374.3,3373.9,0.57827982]
[1719990032217,0.5134751,3374.2,3373.9,0.57827982]
[1719990032444,1.0855131,3374.3,3373.9,0.57827982]
[1719990032582,7.48,3374.5,3374.1,0.57827982]
[1719990032783,0.51347501,3374.4,3374.1,0.57827982]
[1719990033010,0.51347501,3374.3,3374.1,0.57827982]
[1719990033178,2.3577,3374.6,3374.1,0.57827982]
[1719990033377,0.51345734,3374.5,3374.1,0.57827982]
[1719990033619,0.51345734,3374.4,3374.1,0.57827982]
[1719990033782,0.51345734,3374.3,3374.1,0.57827982]
[1719990033978,0.377131,3374.5,3374.1,0.57827982]
[1719990034206,0.51345655,3374.4,3374.1,0.57827982]
[1719990034401,0.51345655,3374.3,3374.1,0.57827982]
[1719990034606,0.51345655,3374.4,3374.1,0.57827982]
[1719990035214,0.377131,3374.5,3374.1,0.57827982]
[1719990035423,0.5134598,3374.4,3374.1,0.57827982]
[1719990035585,0.5134598,3374.3,3374.1,0.57827982]
[1719990035786,0.5134598,3374.4,3374.1,0.57827982]
[1719990038492,0.51345986,3374.3,3374.1,0.57827982]
[1719990038909,0.51345986,3374.2,3374.1,0.57827982]
[1719990039110,0.51345986,3374.4,3374.1,0.57827982]
[1719990040209,0.51345986,3374.4,3374.3,0.57827982]
[1719990040412,0.51345986,3374.6,3374.3,0.57827982]
[1719990040636,0.51345986,3374.5,3374.3,0.57827982]
[1719990040803,0.51345986,3374.4,3374.3,0.57827982]
[1719990041830,0.51341191,3374.4,3374.3,0.57827982]
[1719990045041,0.51341291,3374.4,3374.3,0.57827982]
[1719990045740,0.51341115,3374.4,3374.3,0.57827982]
[1719990047318,0.51341115,3374.4,3374.1,0.57827982]
[1719990047541,2.4023,3374.6,3374.1,0.57827982]
[1719990047542,0.80498227,3374.3,3374.1,0.57827982]
[1719990047740,0.51341115,3374.2,3374.1,0.57827982]
[1719990048555,0.51346118,3374.2,3374.1,0.57827982]
[1719990051519,0.29157112,3374.3,3374.1,0.57827982]
[1719990051715,0.5134541,3374.2,3374.1,0.57827982]
[1719990054479,2.7712541,3374.2,3374.1,0.57827982]
[1719990054752,3.07753662,3374.2,3374.1,0.57827982]
[1719990054968,3.07755795,3374.2,3374.1,0.57827982]
[1719990055752,3.07755795,3374.2,3373.8,0.57827982]
[1719990056046,0.51347543,3374.1,3373.8,0.57827982]
[1719990058152,2.56408252,3374.2,3373.8,0.57827982]
[1719990058355,0.51347862,3374.1,3373.8,0.57827982]
[1719990058537,0.51347862,3374.0,3373.8,0.57827982]
[1719990058729,0.51347885,3373.9,3373.8,0.57827982]
[1719990060833,2.2578,3374.2,3373.8,0.57827982]
[1719990061045,0.51347701,3374.1,3373.8,0.57827982]
[1719990061247,0.51347701,3374.0,3373.8,0.57827982]
[1719990061439,0.51347701,3373.9,3373.8,0.57827982]
[1719990061640,0.51347901,3373.9,3373.8,0.57827982]
[1719990063777,2.2578,3374.2,3373.8,0.57827982]
[1719990064128,0.51347634,3374.1,3373.8,0.57827982]
[1719990064464,2.2578,3374.2,3373.8,0.57827982]
[1719990064465,0.51347634,3374.0,3373.8,0.57827982]
[1719990064767,2.2578,3374.2,3373.8,0.57827982]
[1719990064930,0.5134813,3373.9,3373.8,0.57827982]
[1719990065368,0.51348084,3373.9,3373.8,0.57827982]
[1719990065873,2.2578,3374.2,3373.8,0.57827982]
[1719990066068,0.51347427,3374.1,3373.8,0.57827982]
[1719990066269,0.51347427,3374.0,3373.8,0.57827982]
[1719990066584,2.2749,3374.5,3373.9,1.077]
[1719990066756,0.51346068,3374.4,3373.9,1.077]
[1719990066942,0.51346068,3374.3,3373.9,1.077]
[1719990067145,4.9476,3374.5,3373.9,1.077]
[1719990067476,0.5134656,3374.4,3373.9,1.077]
[1719990067683,0.5134656,3374.3,3373.9,1.077]
[1719990067881,0.5134656,3374.2,3373.9,1.077]
[1719990068055,0.5134656,3374.1,3373.9,1.077]
[1719990068259,0.5134656,3374.0,3373.9,1.077]
[1719990070590,0.51346508,3374.0,3373.9,1.077]
[1719990071086,0.51346378,3374.0,3373.9,1.077]
[1719990071591,2.2749,3374.5,3373.9,1.077]
[1719990071792,0.51344229,3374.4,3373.9,1.077]
[1719990072082,2.2749,3374.5,3373.9,1.077]
[1719990072083,0.51344229,3374.3,3373.9,1.077]
[1719990072289,0.51344229,3374.2,3373.9,1.077]
[1719990072488,0.51344229,3374.1,3373.8,0.57827982]
[1719990072695,2.2749,3374.5,3373.9,1.077]
[1719990072901,1.78893279,3374.4,3373.9,1.077]
[1719990073195,0.51344279,3374.3,3373.9,1.077]
[1719990073568,0.51344279,3374.3,3374.0,0.57827982]
[1719990073896,1.27549,3374.4,3374.0,0.57827982]
[1719990074064,0.51344363,3374.3,3374.0,0.57827982]
[1719990074269,0.51344363,3374.2,3374.0,0.57827982]
[1719990074596,0.51344363,3374.1,3374.0,0.57827982]
[1719990074793,0.51344363,3374.3,3374.0,0.57827982]
[1719990075093,0.51344363,3374.2,3374.0,0.57827982]
[1719990077195,0.51347427,3374.1,3374.0,0.57827982]
[1719990077396,2.77237427,3374.1,3373.7,0.57827982]
[1719990077697,2.77237427,3374.1,3373.5,0.88804381]
[1719990077698,0.6751256,3374.0,3373.5,0.88804381]
[1719990077898,0.6751256,3374.0,3373.5,0.57827982]
[1719990077899,0.51347427,3373.9,3373.5,0.57827982]
[1719990078104,2.3836,3373.8,3373.4,5.0]
[1719990078397,0.51347427,3373.7,3373.4,5.0]
[1719990080403,2.67700256,3373.8,3373.4,5.0]
[1719990080599,0.51358172,3373.7,3373.4,5.0]
[1719990083656,0.51358253,3373.6,3373.4,5.0]
[1719990084072,2.67700256,3373.8,3373.4,5.0]
[1719990084243,0.51356778,3373.5,3373.4,5.0]
[1719990084438,2.3836,3373.8,3373.4,5.0]
[1719990084636,0.51356904,3373.7,3373.4,5.0]
[1719990084840,0.51356904,3373.6,3373.4,5.0]
[1719990085159,2.3836,3373.8,3373.4,5.0]
[1719990085344,0.51355881,3373.7,3373.4,5.0]
[1719990085550,0.51355881,3373.6,3373.4,5.0]
[1719990085752,2.3836,3373.8,3373.4,5.0]
[1719990085963,0.51355904,3373.7,3373.4,5.0]
[1719990086162,2.74582513,3373.8,3373.4,5.0]
[1719990086163,0.51355904,3373.6,3373.4,5.0]
[1719990086469,2.74582513,3373.8,3373.4,5.0]
[1719990086673,0.51355721,3373.7,3373.4,5.0]
[1719990086872,0.51355813,3373.6,3373.4,5.0]
[1719990087072,2.74582513,3373.8,3373.4,5.0]
[1719990087272,0.51355798,3373.7,3373.4,5.0]
[1719990087594,0.51355798,3373.6,3373.4,5.0]
[1719990087776,0.51355798,3373.7,3373.4,5.0]
[1719990087979,0.51355798,3373.6,3373.4,5.0]
[1719990088143,2.74582513,3373.8,3373.4,5.0]
[1719990088144,0.51355798,3373.7,3373.4,5.0]
[1719990089343,0.85566142,3373.7,3373.4,5.0]
[1719990089677,0.51355798,3373.6,3373.4,5.0]
[1719990090052,0.34210344,3373.7,3373.4,5.0]
[1719990090273,0.51356068,3373.6,3373.4,5.0]
[1719990090481,0.34210344,3373.7,3373.4,5.0]
[1719990090681,0.51356107,3373.6,3373.4,5.0]
[1719990090884,0.34210344,3373.7,3373.4,5.0]
[1719990091083,0.51356111,3373.6,3373.4,5.0]
[1719990091285,0.34210344,3373.7,3373.4,5.0]
[1719990091470,0.51356104,3373.6,3373.4,5.0]
[1719990091648,2.3836,3373.8,3373.4,5.0]
[1719990091850,0.51355878,3373.7,3373.4,5.0]
[1719990092049,0.51355878,3373.6,3373.4,5.0]
[1719990092271,2.74582513,3373.8,3373.4,5.0]
[1719990092475,0.51355563,3373.7,3373.4,5.0]
[1719990092677,0.51355563,3373.6,3373.4,5.0]
[1719990092849,0.51355563,3373.7,3373.4,5.0]
[1719990093050,0.51355563,3373.6,3373.4,5.0]
[1719990093249,2.74582513,3373.8,3373.4,5.0]
[1719990093450,0.5135549,3373.7,3373.4,5.0]
[1719990093785,0.5135549,3373.6,3373.4,5.0]
[1719990093985,0.5135549,3373.7,3373.4,5.0]
[1719990094185,0.51355568,3373.6,3373.4,5.0]
[1719990094384,2.74582513,3373.8,3373.4,5.0]
[1719990094553,0.51355561,3373.7,3373.4,5.0]
[1719990094754,0.51355561,3373.6,3373.4,5.0]
[1719990095052,2.74582513,3373.8,3373.4,5.0]
[1719990095253,0.51355568,3373.7,3373.4,5.0]
[1719990095457,0.51355568,3373.6,3373.4,5.0]
[1719990095752,2.74582513,3373.8,3373.4,5.0]
[1719990095982,0.91200347,3373.7,3373.4,5.0]
[1719990096155,0.51355582,3373.6,3373.4,5.0]
[1719990096782,0.39844765,3373.7,3373.4,5.0]
[1719990097082,0.51355579,3373.6,3373.4,5.0]
[1719990097284,2.3836,3373.8,3373.4,5.0]
[1719990097487,0.87578076,3373.7,3373.4,5.0]
[1719990097783,0.51355563,3373.6,3373.4,5.0]
[1719990098159,0.51355563,3373.7,3373.4,5.0]
[1719990099987,2.3836,3373.8,3373.4,5.0]
[1719990100215,0.51355563,3373.6,3373.4,5.0]
[1719990100503,2.3836,3373.8,3373.4,5.0]
[1719990100786,0.51355566,3373.7,3373.4,5.0]
[1719990100964,0.51355566,3373.6,3373.4,5.0]
[1719990101166,2.74582513,3373.8,3373.4,5.0]
[1719990101378,0.51355524,3373.7,3373.4,5.0]
[1719990101687,0.51355524,3373.6,3373.4,5.0]
[1719990101886,0.51355524,3373.7,3373.4,5.0]
[1719990102050,0.51355507,3373.6,3373.4,5.0]
[1719990102251,0.51355516,3373.5,3373.4,5.0]
[1719990103282,0.51355534,3373.5,3373.4,5.0]
[1719990106274,3.4606,3373.8,3373.4,5.0]
[1719990106594,0.36222513,3373.7,3373.4,5.0]
[1719990106886,0.51355591,3373.6,3373.4,5.0]
[1719990107087,3.4606,3373.8,3373.4,5.0]
[1719990107088,0.51355591,3373.5,3373.4,5.0]
[1719990110656,2.3836,3373.8,3373.4,5.0]
[1719990110862,0.51355957,3373.5,3373.4,5.0]
[1719990111064,2.3836,3373.8,3373.4,5.0]
[1719990111287,0.51356068,3373.5,3373.4,5.0]
[1719990113915,2.3836,3373.8,3373.4,5.0]
[1719990114098,1.02713082,3373.5,3373.4,5.0]
[1719990117418,1.02711295,3373.5,3373.4,5.0]
[1719990121989,0.51355176,3373.5,3373.4,5.0]
[1719990122191,0.51355176,3373.5,3373.4,9.14967982]
[1719990122420,7.48,3374.2,3373.7,0.57827982]
[1719990122626,7.48,3374.2,3373.7,1.65527982]
[1719990122627,0.51348152,3374.1,3373.7,1.65527982]
[1719990122792,0.51348152,3374.0,3373.7,1.65527982]
[1719990123315,0.51348152,3373.9,3373.7,1.65527982]
[1719990123722,0.51348788,3373.8,3373.7,1.65527982]
[1719990124620,7.48,3374.2,3373.7,1.65527982]
[1719990124823,0.5134752,3374.1,3373.7,1.65527982]
[1719990124992,0.5134752,3374.0,3373.7,1.65527982]
[1719990125186,0.5134752,3373.9,3373.7,1.65527982]
[1719990125389,7.48,3374.2,3373.7,1.65527982]
[1719990125600,0.51347436,3374.1,3373.7,1.65527982]
[1719990125815,0.51347436,3374.0,3373.7,1.65527982]
[1719990126007,0.51347436,3374.1,3373.7,1.65527982]
[1719990126389,7.48,3374.2,3373.7,1.65527982]
[1719990126593,0.5134711,3374.1,3373.7,1.65527982]
[1719990127405,0.5134711,3374.1,3373.9,0.57827982]
[1719990128355,0.5134711,3374.1,3374.0,1.077]
[1719990128640,7.48,3374.2,3374.1,0.57827982]
[1719990128836,7.99344493,3374.2,3374.1,0.57827982]
[1719990129616,7.48,3374.2,3374.1,0.57827982]
[1719990140733,7.99345922,3374.2,3374.1,0.57827982]
[1719990140902,7.9934618,3374.2,3374.1,0.57827982]
[1719990143083,7.48,3374.2,3374.1,0.57827982]
[1719990143370,7.99345427,3374.2,3374.1,0.57827982]
[1719990146424,7.99346941,3374.2,3374.1,0.57827982]
[1719990146629,9.02911635,3374.2,3373.9,0.57827982]
[1719990146950,0.51346941,3374.1,3373.9,0.57827982]
[1719990149315,0.51346941,3374.0,3373.9,0.57827982]
[1719990149552,0.28764694,3374.0,3373.9,0.57827982]
[1719990149750,2.363,3374.3,3373.9,0.57827982]
[1719990150044,0.51348506,3374.2,3373.9,0.57827982]
[1719990150256,0.51348282,3374.1,3373.9,0.57827982]
[1719990150465,0.51348282,3374.0,3373.9,0.57827982]
[1719990150832,0.51348282,3374.0,3373.9,1.65527982]
[1719990153160,0.51347598,3374.0,3373.9,1.65527982]
[1719990153559,0.51347598,3374.0,3373.9,0.57827982]
[1719990156464,2.363,3374.3,3373.9,0.57827982]
[1719990156647,0.51346975,3374.2,3373.9,0.57827982]
[1719990156848,0.51346975,3374.1,3373.9,0.57827982]
[1719990157059,0.51346975,3374.2,3373.9,0.57827982]
[1719990157248,0.74976975,3374.2,3373.9,0.57827982]
[1719990157448,0.51346975,3374.1,3373.9,0.57827982]
[1719990157635,0.51346975,3374.0,3373.9,0.57827982]
[1719990157852,0.51346975,3374.0,3373.9,1.65527982]
[1719990159789,3.84481,3374.3,3373.9,1.65527982]
[1719990159990,0.51344622,3374.2,3373.9,1.65527982]
[1719990160155,0.51344622,3374.1,3373.9,1.65527982]
[1719990160356,0.51344622,3374.0,3373.9,1.65527982]
[1719990163092,2.363,3374.3,3373.9,1.65527982]
[1719990163384,0.51345324,3374.2,3373.9,1.65527982]
[1719990163598,2.363,3374.3,3373.9,1.65527982]
[1719990163895,0.51344934,3374.2,3373.9,1.65527982]
[1719990164185,8.96168,3374.6,3373.9,1.65527982]
[1719990164186,0.51344934,3374.1,3373.9,1.65527982]
[1719990164365,7.48,3374.6,3373.9,1.65527982]
[1719990164366,0.51344934,3374.0,3373.9,1.65527982]
[1719990164567,7.48,3374.6,3373.9,1.65527982]
[1719990164778,3.15539781,3374.5,3373.9,1.65527982]
[1719990164993,3.15539781,3374.5,3374.1,1.077]
[1719990164994,0.51342681,3374.4,3374.1,1.077]
[1719990165492,0.51342681,3374.4,3374.2,0.57827982]
[1719990165674,7.48,3374.6,3374.2,0.57827982]
[1719990165675,0.51342681,3374.5,3374.2,0.57827982]
[1719990165879,0.51342681,3374.4,3374.2,0.57827982]
[1719990166080,0.51342681,3374.3,3374.2,0.57827982]
[1719990166387,0.5134226,3374.3,3374.2,0.57827982]
[1719990169889,0.5134219,3374.3,3374.2,0.57827982]
[1719990173102,1.077,3374.5,3374.2,0.57827982]
[1719990173296,0.51342309,3374.3,3374.2,0.57827982]
[1719990176602,0.51342734,3374.3,3374.2,0.57827982]
[1719990176973,3.4885,3374.3,3374.0,0.57827982]
[1719990177268,0.51345691,3374.2,3374.0,0.57827982]
[1719990177473,0.51345691,3374.1,3374.0,0.57827982]
[1719990179733,0.51345103,3374.1,3374.0,0.57827982]
[1719990180020,0.51345069,3374.1,3374.0,0.57827982]
[1719990182392,3.4885,3374.3,3374.0,0.57827982]
[1719990182592,0.51344888,3374.2,3374.0,0.57827982]
[1719990182768,0.51344888,3374.1,3374.0,0.57827982]
[1719990182974,0.51344888,3374.2,3374.0,0.57827982]
[1719990183175,0.51344888,3374.1,3374.0,0.57827982]
[1719990183405,0.51344888,3374.2,3374.0,0.57827982]
[1719990183702,0.51344888,3374.1,3374.0,0.57827982]
[1719990185909,0.51344539,3374.1,3374.0,0.57827982]
[1719990186208,0.51344452,3374.1,3374.0,0.57827982]
[1719990188979,1.077,3374.4,3374.0,0.57827982]
[1719990189208,0.51343954,3374.1,3374.0,0.57827982]
[1719990189799,0.51343954,3374.3,3374.0,0.57827982]
[1719990192312,2.319676,3374.4,3374.0,0.57827982]
[1719990192616,0.5134471,3374.3,3374.0,0.57827982]
[1719990192779,0.5134471,3374.2,3374.0,0.57827982]
[1719990192981,0.5134471,3374.3,3374.0,0.57827982]
[1719990195210,1.077,3374.4,3374.0,0.57827982]
[1719990205188,0.51343877,3374.3,3374.0,0.57827982]
[1719990205387,0.51343877,3374.2,3374.0,0.57827982]
[1719990205719,1.077,3374.4,3374.0,0.57827982]
[1719990205895,0.51343942,3374.1,3374.0,0.57827982]
[1719990209144,1.077,3374.4,3374.0,0.57827982]
[1719990209320,0.5134462,3374.1,3374.0,0.57827982]
[1719990212630,0.51346664,3374.1,3374.0,0.57827982]
[1719990213021,0.51347091,3374.1,3374.0,0.57827982]
[1719990214358,0.51347091,3374.1,3373.8,0.57827982]
[1719990214524,2.4665,3373.8,3373.6,0.57827982]
[1719990214838,2.4665,3373.8,3373.4,5.0]
[1719990214839,1.59047091,3373.7,3373.4,5.57827982]
[1719990215156,0.51347091,3373.6,3373.4,5.57827982]
[1719990215553,1.077,3373.7,3373.4,5.57827982]
[1719990215718,0.51354092,3373.6,3373.4,5.57827982]
[1719990215925,0.51354191,3373.5,3373.4,5.57827982]
[1719990216422,1.077,3373.7,3373.4,5.57827982]
[1719990216624,0.5135412,3373.6,3373.4,5.57827982]
[1719990216823,1.077,3373.7,3373.4,5.57827982]
[1719990216824,0.5135412,3373.5,3373.4,5.57827982]
[1719990217449,1.077,3373.7,3373.4,5.57827982]
[1719990217623,0.51354005,3373.6,3373.4,5.57827982]
[1719990217954,1.077,3373.7,3373.4,5.57827982]
[1719990218142,0.51353587,3373.6,3373.4,5.57827982]
[1719990218546,1.077,3373.7,3373.4,5.57827982]
[1719990218745,0.51353579,3373.6,3373.4,5.57827982]
[1719990218944,2.4665,3373.8,3373.4,5.57827982]
[1719990219139,0.51353251,3373.7,3373.4,5.57827982]
[1719990219449,0.51353251,3373.6,3373.4,5.57827982]
[1719990219628,0.51353251,3373.7,3373.4,5.57827982]
[1719990221154,2.4665,3373.8,3373.4,5.57827982]
[1719990221335,0.5135302,3373.7,3373.4,5.57827982]
[1719990221533,2.4665,3373.8,3373.4,5.57827982]
[1719990221739,0.51353134,3373.7,3373.4,5.57827982]
[1719990221938,1.48197,3373.9,3373.4,5.57827982]
[1719990222344,0.5135286,3373.8,3373.4,5.57827982]